fUST/lending_fUST_20250608
["ID","MTS","AMOUNT","RATE_DAILY","PERIOD"]
[364988643,1749384656857,-505.29982678,0.00022465,2]
[364988644,1749384656875,-440.0,0.00022465,4]
[364988645,1749384656893,-717.08,0.00022465,4]
[364988646,1749384656910,-698.82,0.00022465,4]
[364988647,1749384656928,-440.0,0.00022465,4]
[364988648,1749384656947,-440.0,0.00022465,4]
[364988649,1749384656965,-440.0,0.00022465,4]
[364988650,1749384656982,-440.0,0.00022465,4]
[364988651,1749384656999,-440.0,0.00022465,4]
[364988652,1749384657016,-937.47,0.00022465,4]
[364988653,1749384657033,-440.0,0.00022465,4]
[364988654,1749384657050,-1904.82,0.00022465,4]
[364988655,1749384657067,-440.0,0.00022465,4]
[364988656,1749384657084,-440.0,0.00022465,4]
[364988657,1749384657101,-440.0,0.00022465,4]
[364988658,1749384657120,-440.0,0.00022465,4]
[364988659,1749384657136,-708.52,0.00022465,4]
[364988660,1749384657153,-440.0,0.00022465,4]
[364988661,1749384657171,-440.0,0.00022465,4]
[364988662,1749384657189,-440.0,0.00022465,4]
[364988663,1749384657208,-440.0,0.00022465,4]
[364988664,1749384657225,-440.0,0.00022465,4]
[364988665,1749384657242,-440.0,0.00022465,4]
[364988666,1749384657261,-440.0,0.00022465,4]
[364988667,1749384657279,-440.0,0.00022465,4]
[364988668,1749384657296,-1012.07,0.00022465,4]
[364988669,1749384657314,-1500.68,0.00022465,4]
[364988670,1749384657330,-627.61,0.00022465,4]
[364988671,1749384657348,-472.27,0.00022465,2]
[364988672,1749384657363,-2760.87,0.00022465,4]
[364988673,1749384657373,-2205.42,0.00022465,4]
[364988674,1749384657384,-1291.01,0.00022465,4]
[364988675,1749384657513,-440.0,0.00022465,4]
[364988676,1749384657572,-440.0,0.00022465,4]
[364988677,1749384657583,-440.0,0.00022465,4]
[364988678,1749384657594,-2473.16,0.00022465,4]
[364988679,1749384657604,-779.1,0.00022465,4]
[364988680,1749384657614,-440.0,0.00022465,4]
[364988681,1749384657625,-440.0,0.00022465,4]
[364988682,1749384657637,-440.0,0.00022465,4]
[364988683,1749384657647,-1603.57,0.00022465,4]
[364988684,1749384657657,-2760.88,0.00022465,4]
[364988685,1749384657667,-440.0,0.00022465,4]
[364988686,1749384657678,-151.0,0.00022465,7]
[364988687,1749384657688,-440.0,0.00022465,4]
[364988688,1749384657699,-440.0,0.00022465,4]
[364988689,1749384657711,-1583.43,0.00022465,4]
[364988690,1749384657723,-687.75,0.00022465,4]
[364988691,1749384657734,-450.46,0.00022465,4]
[364988692,1749384657745,-966.08,0.00022465,4]
[364988693,1749384657756,-1825.6,0.00022465,4]
[364988694,1749384657766,-681.26,0.00022465,4]
[364988695,1749384657775,-151.0,0.00022465,2]
[364988696,1749384657785,-440.0,0.00022465,4]
[364988697,1749384657795,-440.0,0.00022465,4]
[364988698,1749384657806,-182.296164,0.00022465,2]
[364988699,1749384657816,-151.0,0.00022465,7]
[364988700,1749384657827,-732.10952256,0.0002249,2]
[364988701,1749384657837,-500.0,0.000225,2]
[364988702,1749384657847,-251.12974051,0.0002256,2]
[364988703,1749384657856,-5000.0,0.00022603,2]
[364988704,1749384657866,-378.83,0.00022627,2]
[364988705,1749384657876,-1000.0,0.00022627,2]
[364988706,1749384657887,-1000.0,0.00022627,2]
[364988707,1749384657897,-1000.0,0.00022627,2]
[364988708,1749384657907,-1001.54891852,0.00022627,2]
[364988709,1749384657916,-540.6429382,0.00022627,2]
[364988710,1749384657926,-1200.0,0.00022627,2]
[364988711,1749384657936,-1000.0,0.00022627,2]
[364988712,1749384657946,-1000.0,0.00022627,2]
[364988713,1749384657956,-1000.0,0.00022627,2]
[364988714,1749384657966,-360.08328903,0.00022627,2]
[364988715,1749384657976,-1000.0,0.00022627,2]
[364988716,1749384657986,-1005.52609269,0.00022627,2]
[364988717,1749384657996,-7744.35793136,0.00022639,2]
[364988718,1749384658007,-1000.0,0.00022639,2]
[364988719,1749384658017,-364.8515477,0.00022658,2]
[364988720,1749384658027,-607.8509358,0.00022658,2]
[364988721,1749384658037,-364.8515477,0.00022658,2]
[364988722,1749384658047,-364.8515477,0.00022658,2]
[364988723,1749384658057,-364.8515477,0.00022658,2]
[364988724,1749384658067,-364.8515477,0.00022658,2]
[364988725,1749384658077,-364.8515477,0.00022658,2]
[364988726,1749384658087,-364.8515477,0.00022658,2]
[364988727,1749384658097,-364.8515477,0.00022658,2]
[364988728,1749384658107,-364.8515477,0.00022658,2]
[364988729,1749384658117,-157.72257582,0.0002266,2]
[364988730,1749384658127,-500.0,0.00022688,2]
[364988731,1749384658137,-12500.0,0.00022713,3]
[364988732,1749384658147,-151.0,0.00022713,7]
[364988733,1749384658158,-151.0,0.00022713,7]
[364988734,1749384658168,-1500.0,0.00022719,2]
[364988735,1749384658178,-213.05153702,0.0002272,3]
[364988736,1749384658188,-237.179429,0.00022721,7]
[364988737,1749384658199,-237.179429,0.00022721,7]
[364988738,1749384658209,-151.0,0.00022721,7]
[364988739,1749384658219,-280.924039,0.00022721,7]
[364988740,1749384658229,-12500.0,0.00022721,3]
[364988741,1749384658240,-151.0,0.0002273,7]
[364988742,1749384658250,-151.0,0.0002273,7]
[364988743,1749384658260,-12500.0,0.0002273,3]
[364988744,1749384658271,-2838.53603338,0.00022739,3]
[364988745,1749384658281,-12500.0,0.00022739,3]
[364988746,1749384658291,-440.0,0.00022739,4]
[364988747,1749384658301,-151.0,0.00022739,7]
[364988748,1749384658311,-717.08,0.00022739,4]
[364988749,1749384658320,-698.82,0.00022739,4]
[364988750,1749384658330,-440.0,0.00022739,4]
[364988751,1749384658341,-440.0,0.00022739,4]
[364988752,1749384658351,-440.0,0.00022739,4]
[364988753,1749384658361,-440.0,0.00022739,4]
[364988754,1749384658371,-440.0,0.00022739,4]
[364988755,1749384658381,-937.47,0.00022739,4]
[364988756,1749384658391,-440.0,0.00022739,4]
[364988757,1749384658401,-1904.82,0.00022739,4]
[364988758,1749384658411,-440.0,0.00022739,4]
[364988759,1749384658421,-169.52,0.00022739,4]
[364988760,1749384658430,-440.0,0.00022739,4]
[364988761,1749384658441,-440.0,0.00022739,4]
[364988762,1749384658451,-708.52,0.00022739,4]
[364988763,1749384658460,-440.0,0.00022739,4]
[364988764,1749384658470,-440.0,0.00022739,4]
[364988765,1749384658479,-440.0,0.00022739,4]
[364988766,1749384658489,-434.38608185,0.00022739,4]
[364988767,1749384658498,-440.0,0.00022739,4]
[364988768,1749384658508,-440.0,0.00022739,4]
[364988769,1749384658518,-440.0,0.00022739,4]
[364988770,1749384658529,-1012.07,0.00022739,4]
[364988771,1749384658540,-1500.68,0.00022739,4]
[364988772,1749384658549,-627.61,0.00022739,4]
[364988773,1749384658560,-472.27,0.00022739,2]
[364988774,1749384658574,-2760.87,0.00022739,4]
[364988775,1749384658583,-2205.42,0.00022739,4]
[364988776,1749384658593,-1291.01,0.00022739,4]
[364988777,1749384658602,-349.28538813,0.00022739,4]
[364988778,1749384658613,-440.0,0.00022739,4]
[364988779,1749384658623,-440.0,0.00022739,4]
[364988780,1749384658632,-2473.16,0.00022739,4]
[364988781,1749384658642,-779.1,0.00022739,4]
[364988782,1749384658652,-440.0,0.00022739,4]
[364988783,1749384658661,-440.0,0.00022739,4]
[364988784,1749384658670,-1603.57,0.00022739,4]
[364988785,1749384658680,-2760.88,0.00022739,4]
[364988786,1749384658689,-440.0,0.00022739,4]
[364988787,1749384658699,-151.0,0.00022739,7]
[364988788,1749384658709,-440.0,0.00022739,4]
[364988789,1749384658718,-440.0,0.00022739,4]
[364988790,1749384658728,-1583.43,0.00022739,4]
[364988791,1749384658737,-687.75,0.00022739,4]
[364988792,1749384658747,-450.46,0.00022739,4]
[364988793,1749384658757,-966.08,0.00022739,4]
[364988794,1749384658767,-1825.6,0.00022739,4]
[364988795,1749384658777,-681.26,0.00022739,4]
[364988796,1749384658786,-151.0,0.00022739,2]
[364988797,1749384658796,-440.0,0.00022739,4]
[364988798,1749384658806,-440.0,0.00022739,4]
[364988799,1749384658815,-1500.0,0.00022764,2]
[364988800,1749384658825,-507.47350341,0.00022764,2]
[364988801,1749384658835,-505.70812789,0.00022764,2]
[364988802,1749384658844,-504.33399197,0.00022764,2]
[364988803,1749384658854,-1500.0,0.00022764,2]
[364988804,1749384658864,-1008.08426279,0.00022764,2]
[364988805,1749384658873,-1008.73643888,0.00022764,2]
[364988806,1749384658883,-320534.34346017,0.00022783,2]
[364988807,1749384658892,-237.179429,0.00022783,7]
[364988808,1749384658902,-237.179429,0.00022783,7]
[364988809,1749384658912,-151.0,0.00022783,7]
[364988810,1749384658921,-151.0,0.00022783,7]
[364988811,1749384658930,-151.0,0.00022783,7]
[364988812,1749384658940,-151.0,0.00022783,7]
[364988813,1749384658950,-151.0,0.00022783,7]
[364988814,1749384658960,-151.0,0.00022783,7]
[364988815,1749384658969,-151.0,0.00022783,2]
[364988816,1749384658978,-151.0,0.00022783,7]
[364988817,1749384658988,-156.305,0.00022785,2]
[364988818,1749384658998,-176.7524085,0.00022795,2]
[364988819,1749384659008,-573.126752,0.00022795,2]
[364988820,1749384659017,-176.7524085,0.00022795,2]
[364988821,1749384659027,-573.126752,0.00022795,2]
[364988822,1749384659037,-176.7524085,0.00022795,2]
[364988823,1749384659047,-573.126752,0.00022795,2]
[364988824,1749384659056,-573.126752,0.00022795,2]
[364988825,1749384659066,-153.0,0.00022795,2]
[364988826,1749384659076,-153.0,0.00022795,2]
[364988827,1749384659085,-153.0,0.00022795,2]
[364988828,1749384659095,-153.0,0.00022795,2]
[364988829,1749384659104,-1005.31,0.000228,7]
[364988830,1749384659114,-151.0,0.000228,10]
[364988831,1749384659124,-151.0,0.000228,5]
[364988832,1749384659134,-160.0,0.00022807,4]
[364988833,1749384659144,-7744.35793132,0.00022846,2]
[364988834,1749384659154,-5000.0,0.00022919,2]
[364988835,1749384659163,-1036.358061,0.00022923,3]
[364988836,1749384659173,-573.126752,0.00022932,2]
[364988837,1749384659183,-176.7524085,0.00022932,2]
[364988838,1749384659193,-158.6873432,0.00022932,2]
[364988839,1749384659202,-306.0,0.00022932,2]
[364988840,1749384659212,-573.126752,0.00022932,2]
[364988841,1749384659222,-158.6873432,0.00022932,2]
[364988842,1749384659231,-306.0,0.00022932,2]
[364988843,1749384659241,-176.7524085,0.00022932,2]
[364988844,1749384659355,-573.126752,0.00022932,2]
[364988845,1749384659367,-158.6873432,0.00022932,2]
[364988846,1749384659378,-573.126752,0.00022932,2]
[364988847,1749384659387,-158.6873432,0.00022932,2]
[364988848,1749384659397,-352.9095234,0.00022932,2]
[364988849,1749384659407,-176.7524085,0.00022932,2]
[364988850,1749384659416,-573.126752,0.00022932,2]
[364988851,1749384659426,-158.6873432,0.00022932,2]
[364988852,1749384659435,-153.0,0.00022932,2]
[364988853,1749384659445,-154.7226388,0.00022932,2]
[364988854,1749384659454,-176.7524085,0.00022932,2]
[364988855,1749384659464,-306.0,0.00022932,2]
[364988856,1749384659474,-158.6873432,0.00022932,2]
[364988857,1749384659483,-153.0,0.00022932,2]
[364988858,1749384659492,-176.7524085,0.00022932,2]
[364988859,1749384659502,-573.126752,0.00022932,2]
[364988860,1749384659512,-158.6873432,0.00022932,2]
[364988861,1749384659521,-176.7524085,0.00022932,2]
[364988862,1749384659531,-158.6873432,0.00022932,2]
[364988863,1749384659540,-153.0,0.00022932,2]
[364988864,1749384659550,-573.126752,0.00022932,2]
[364988865,1749384659560,-176.7524085,0.00022932,2]
[364988866,1749384659572,-573.126752,0.00022932,2]
[364988867,1749384659582,-176.7524085,0.00022932,2]
[364988868,1749384659591,-158.6873432,0.00022932,2]
[364988869,1749384659602,-176.7524085,0.00022932,2]
[364988870,1749384659612,-158.6873432,0.00022932,2]
[364988871,1749384659621,-573.126752,0.00022932,2]
[364988872,1749384659631,-153.0,0.00022932,2]
[364988873,1749384659642,-317.3746864,0.00022932,2]
[364988874,1749384659652,-176.7524085,0.00022932,2]
[364988875,1749384659661,-573.126752,0.00022932,2]
[364988876,1749384659671,-322.2086104,0.00022932,2]
[364988877,1749384659680,-158.1637622,0.00022932,2]
[364988878,1749384659690,-573.126752,0.00022932,2]
[364988879,1749384659699,-175.5237424,0.00022932,2]
[364988880,1749384659709,-573.126752,0.00022932,2]
[364988881,1749384659718,-573.126752,0.00022932,2]
[364988882,1749384659728,-189.17302754,0.00022932,72]
[364988883,1749384659737,-160.0,0.00023,3]
[364988884,1749384659747,-500.0,0.00023,2]
[364988885,1749384659756,-229.60437222,0.00023,3]
[364988886,1749384659766,-160.0,0.00023,3]
[364988887,1749384659775,-834.40325513,0.00023,3]
[364988888,1749384659785,-440.0,0.00023013,4]
[364988889,1749384659794,-717.08,0.00023013,4]
[364988890,1749384659804,-698.82,0.00023013,4]
[364988891,1749384659813,-440.0,0.00023013,4]
[364988892,1749384659823,-440.0,0.00023013,4]
[364988893,1749384659833,-440.0,0.00023013,4]
[364988894,1749384659842,-440.0,0.00023013,4]
[364988895,1749384659852,-937.47,0.00023013,4]
[364988896,1749384659862,-1904.82,0.00023013,4]
[364988897,1749384659872,-440.0,0.00023013,4]
[364988898,1749384659882,-440.0,0.00023013,4]
[364988899,1749384659891,-708.52,0.00023013,4]
[364988900,1749384659902,-440.0,0.00023013,4]
[364988901,1749384659911,-440.0,0.00023013,4]
[364988902,1749384659921,-440.0,0.00023013,4]
[364988903,1749384659931,-1012.07,0.00023013,4]
[364988904,1749384659940,-1500.68,0.00023013,4]
[364988905,1749384659950,-627.61,0.00023013,4]
[364988906,1749384659959,-472.27,0.00023013,2]
[364988907,1749384659968,-2760.87,0.00023013,4]
[364988908,1749384659978,-2205.42,0.00023013,4]
[364988909,1749384659987,-1291.01,0.00023013,4]
[364988910,1749384659997,-440.0,0.00023013,4]
[364988911,1749384660007,-2473.16,0.00023013,4]
[364988912,1749384660017,-779.1,0.00023013,4]
[364988913,1749384660027,-440.0,0.00023013,4]
[364988914,1749384660037,-1603.57,0.00023013,4]
[364988915,1749384660047,-2760.88,0.00023013,4]
[364988916,1749384660057,-440.0,0.00023013,4]
[364988917,1749384660067,-1583.43,0.00023013,4]
[364988918,1749384660077,-687.75,0.00023013,4]
[364988919,1749384660087,-450.46,0.00023013,4]
[364988920,1749384660096,-966.08,0.00023013,4]
[364988921,1749384660108,-1825.6,0.00023013,4]
[364988922,1749384660119,-681.26,0.00023013,4]
[364988923,1749384660129,-306.7585254,0.00023014,2]
[364988924,1749384660139,-155.0,0.00023014,7]
[364988925,1749384660149,-1200.0,0.00023074,2]
[364988926,1749384660159,-134797.52,0.000231,7]
[364988927,1749384660169,-1006.73819751,0.00023175,2]
[364988928,1749384660179,-505.58981562,0.00023175,2]
[364988929,1749384660189,-1800.0,0.00023175,2]
[364988930,1749384660200,-500.0,0.00023175,2]
[364988931,1749384660210,-1044.53548182,0.00023175,2]
[364988932,1749384660220,-1500.0,0.00023175,2]
[364988933,1749384660230,-1500.0,0.00023175,2]
[364988934,1749384660240,-500.85457552,0.00023175,2]
[364988935,1749384660250,-215.0738,0.00023192,2]
[364988936,1749384660260,-151.0,0.000232,5]
[364988937,1749384660270,-511.06196989,0.00023267,2]
[364988938,1749384660280,-101310.77,0.0002328,10]
[364988939,1749384660290,-440.0,0.00023287,4]
[364988940,1749384660300,-717.08,0.00023287,4]
[364988941,1749384660310,-698.82,0.00023287,4]
[364988942,1749384660320,-440.0,0.00023287,4]
[364988943,1749384660330,-440.0,0.00023287,4]
[364988944,1749384660340,-383.99,0.00023287,4]
[364988945,1749384660350,-440.0,0.00023287,4]
[364988946,1749384660359,-937.47,0.00023287,4]
[364988947,1749384660369,-1904.82,0.00023287,4]
[364988948,1749384660379,-440.0,0.00023287,4]
[364988949,1749384660389,-440.0,0.00023287,4]
[364988950,1749384660401,-708.52,0.00023287,4]
[364988951,1749384660410,-440.0,0.00023287,4]
[364988952,1749384660419,-440.0,0.00023287,4]
[364988953,1749384660429,-440.0,0.00023287,4]
[364988954,1749384660439,-1012.07,0.00023287,4]
[364988955,1749384660449,-1500.68,0.00023287,4]
[364988956,1749384660458,-627.61,0.00023287,4]
[364988957,1749384660467,-472.27,0.00023287,2]
[364988958,1749384660476,-2760.87,0.00023287,4]
[364988959,1749384660486,-2205.42,0.00023287,4]
[364988960,1749384660495,-1291.01,0.00023287,4]
[364988961,1749384660505,-440.0,0.00023287,4]
[364988962,1749384660514,-2473.16,0.00023287,4]
[364988963,1749384660524,-779.1,0.00023287,4]
[364988964,1749384660533,-440.0,0.00023287,4]
[364988965,1749384660542,-1603.57,0.00023287,4]
[364988966,1749384660552,-2760.88,0.00023287,4]
[364988967,1749384660565,-440.0,0.00023287,4]
[364988968,1749384660577,-1583.43,0.00023287,4]
[364988969,1749384660586,-687.75,0.00023287,4]
[364988970,1749384660596,-450.46,0.00023287,4]
[364988971,1749384660607,-966.08,0.00023287,4]
[364988972,1749384660616,-1825.6,0.00023287,4]
[364988973,1749384660626,-681.26,0.00023287,4]
[364988974,1749384660636,-763.31,0.000233,7]
[364988975,1749384660646,-1503.96413543,0.00023312,2]
[364988976,1749384660656,-2000.0,0.00023312,2]
[364988977,1749384660665,-115648.03,0.00023316,10]
[364988978,1749384660674,-500.0,0.00023373,2]
[364988979,1749384660684,-292.38738457,0.00023391,2]
[364988980,1749384660694,-250.4721,0.00023397,7]
[364988981,1749384660704,-151.0,0.00023397,2]
[364988982,1749384660714,-364.8515477,0.00023397,2]
[364988983,1749384660723,-364.8515477,0.00023397,2]
[364988984,1749384660733,-364.8515477,0.00023397,2]
[364988985,1749384660742,-364.8515477,0.00023397,2]
[364988986,1749384660751,-364.8515477,0.00023397,2]
[364988987,1749384660761,-364.8515477,0.00023397,2]
[364988988,1749384660771,-364.8515477,0.00023397,2]
[364988989,1749384660780,-364.8515477,0.00023397,2]
[364988990,1749384660790,-364.8515477,0.00023397,2]
[364988991,1749384660799,-364.8515477,0.00023397,2]
[364988992,1749384660809,-364.8515477,0.00023397,2]
[364988993,1749384660818,-364.8515477,0.00023397,2]
[364988994,1749384660828,-3000.0,0.000234,2]
[364988995,1749384660838,-1755.35,0.000234,7]
[364988996,1749384660847,-151.0,0.000234,7]
[364988997,1749384660857,-11853.97844947,0.000234,7]
[364988998,1749384660866,-237.179429,0.000234,7]
[364988999,1749384660876,-237.179429,0.000234,7]
[364989000,1749384660987,-151.0,0.000234,7]
[364989001,1749384660996,-151.0,0.000234,7]
[364989002,1749384661006,-151.0,0.000234,7]
[364989003,1749384661016,-151.0,0.000234,7]
[364989004,1749384661026,-300.100556,0.000234,7]
[364989005,1749384661036,-43698.92,0.000234,2]
[364989006,1749384661047,-3000.0,0.0002341,2]
[364989007,1749384661057,-151.0,0.0002341,2]
[364989008,1749384661066,-512.0,0.00023413,2]
[364989009,1749384661077,-3000.0,0.0002342,2]
[364989010,1749384661087,-3000.0,0.0002343,2]
[364989011,1749384661097,-3000.0,0.0002344,2]
[364989012,1749384661107,-3000.0,0.0002345,2]
[364989013,1749384661116,-3000.0,0.0002346,2]
[364989014,1749384661126,-432.95,0.00023465,2]
[364989015,1749384661136,-5000.0,0.00023467,2]
[364989016,1749384661146,-3000.0,0.0002347,2]
[364989017,1749384661156,-500.82272851,0.00023479,2]
[364989018,1749384661166,-159.87566464,0.00023479,2]
[364989019,1749384661175,-3000.0,0.0002348,2]
[364989020,1749384661185,-1162.0,0.00023489,2]
[364989021,1749384661195,-3000.0,0.0002349,2]
[364989022,1749384661205,-1162.0,0.00023493,2]
[364989023,1749384661215,-100088.3717666,0.000235,2]
[364989024,1749384661225,-95.95658627,0.000235,2]
[364989025,1749384661363,-132.66830813,0.000235,2]
[364989026,1749384661373,-1020.01606668,0.000235,2]
[364989027,1749384661820,-16000.0,0.00019166,2]
[364989028,1749384661830,-8311.38760563,0.00019166,2]
[364989029,1749384661840,-440.0,0.00019178,2]
[364989030,1749384661850,-440.0,0.00019178,2]
[364989031,1749384661861,-440.0,0.00019452,2]
[364989032,1749384661876,-443.61,0.00019452,2]
[364989033,1749384661887,-16000.0,0.00019714,2]
[364989034,1749384661898,-440.0,0.00019726,2]
[364989035,1749384661908,-440.0,0.0002,2]
[364989036,1749384661918,-151.0,0.0002,2]
[364989037,1749384661928,-16000.0,0.00020262,2]
[364989038,1749384661938,-440.0,0.00020273,2]
[364989039,1749384661948,-151.0,0.00020273,2]
[364989040,1749384661959,-440.0,0.00020547,2]
[364989041,1749384661969,-440.0,0.00020821,2]
[364989042,1749384661978,-440.0,0.00021095,2]
[364989043,1749384661988,-440.0,0.00021369,2]
[364989044,1749384661998,-440.0,0.00021643,2]
[364989045,1749384662008,-440.0,0.00021917,2]
[364989046,1749384662018,-440.0,0.00022191,4]
[364989047,1749384662028,-405.0,0.00022429,2]
[364989048,1749384662038,-440.0,0.00022465,4]
[364989049,1749384662048,-440.0,0.00022739,4]
[364989050,1749384662058,-7744.35793132,0.00023053,2]
[364989051,1749384662069,-151.0,0.000231,7]
[364989052,1749384662078,-151.0,0.0002347,7]
[364989053,1749384662088,-1979.98393332,0.000235,2]
[364989054,1749384662098,-151.0,0.000235,7]
[364989055,1749384662109,-237.179429,0.000235,7]
[364989056,1749384662120,-237.179429,0.000235,7]
[364989057,1749384662130,-151.0,0.000235,7]
[364989058,1749384662140,-151.0,0.000235,7]
[364989059,1749384662150,-291.646316,0.000235,7]
[364989060,1749384662160,-151.0,0.000235,7]
[364989061,1749384662170,-1039.38,0.000235,30]
[364989062,1749384662180,-3000.0,0.0002351,2]
[364989063,1749384662191,-500.0,0.00023514,2]
[364989064,1749384662201,-3000.0,0.0002352,2]
[364989065,1749384662210,-3000.0,0.0002353,2]
[364989066,1749384662220,-3000.0,0.00023539,2]
[364989067,1749384662230,-1162.0,0.0002354,2]
[364989068,1749384662240,-3000.0,0.0002354,2]
[364989069,1749384662249,-42781.05018281,0.00023547,2]
[364989070,1749384662259,-3000.0,0.0002355,2]
[364989071,1749384662269,-3000.0,0.0002356,2]
[364989072,1749384662399,-494.52,0.00023561,4]
[364989073,1749384662409,-717.08,0.00023561,4]
[364989074,1749384662418,-440.0,0.00023561,4]
[364989075,1749384662428,-178.96,0.00023561,4]
[364989076,1749384662438,-437.49858988,0.00023561,4]
[364989077,1749384662448,-937.47,0.00023561,4]
[364989078,1749384662458,-1904.82,0.00023561,4]
[364989079,1749384662470,-440.0,0.00023561,4]
[364989080,1749384662480,-440.0,0.00023561,4]
[364989081,1749384662490,-708.52,0.00023561,4]
[364989082,1749384662500,-440.0,0.00023561,4]
[364989083,1749384662510,-440.0,0.00023561,4]
[364989084,1749384662520,-440.0,0.00023561,4]
[364989085,1749384662530,-1012.07,0.00023561,4]
[364989086,1749384662540,-1500.68,0.00023561,4]
[364989087,1749384662550,-627.61,0.00023561,4]
[364989088,1749384662560,-472.27,0.00023561,2]
[364989089,1749384662575,-2760.87,0.00023561,4]
[364989090,1749384662585,-2205.42,0.00023561,4]
[364989091,1749384662595,-1291.01,0.00023561,4]
[364989092,1749384662605,-440.0,0.00023561,4]
[364989093,1749384662615,-2473.16,0.00023561,4]
[364989094,1749384662625,-779.1,0.00023561,4]
[364989095,1749384662638,-541.68,0.00023561,4]
[364989096,1749384662648,-1603.57,0.00023561,4]
[364989097,1749384662658,-2760.88,0.00023561,4]
[364989098,1749384662669,-440.0,0.00023561,4]
[364989099,1749384662680,-1583.43,0.00023561,4]
[364989100,1749384662691,-687.75,0.00023561,4]
[364989101,1749384662701,-450.46,0.00023561,4]
[364989102,1749384662710,-966.08,0.00023561,4]
[364989103,1749384662720,-1825.6,0.00023561,4]
[364989104,1749384662732,-681.26,0.00023561,4]
[364989105,1749384662742,-3000.0,0.0002357,2]
[364989106,1749384662752,-3000.0,0.0002358,2]
[364989107,1749384662761,-3000.0,0.0002359,2]
[364989108,1749384662771,-3000.0,0.000236,2]
[364989109,1749384662781,-151.0,0.000236,10]
[364989110,1749384662792,-3000.0,0.0002361,2]
[364989111,1749384662804,-1162.0,0.00023611,2]
[364989112,1749384662814,-364.8515477,0.00023616,2]
[364989113,1749384662824,-3000.0,0.0002362,2]
[364989114,1749384662834,-3000.0,0.0002363,2]
[364989115,1749384662843,-3000.0,0.0002364,2]
[364989116,1749384662853,-3000.0,0.0002365,2]
[364989117,1749384662864,-1162.0,0.00023656,2]
[364989118,1749384662874,-3000.0,0.0002366,2]
[364989119,1749384662883,-3000.0,0.0002367,2]
[364989120,1749384662893,-151.0,0.0002367,7]
[364989121,1749384662904,-150.0,0.00023673,2]
[364989122,1749384662914,-151.0,0.00023676,7]
[364989123,1749384662924,-3000.0,0.0002368,2]
[364989124,1749384662934,-3000.0,0.0002369,2]
[364989125,1749384662943,-237.179429,0.0002369,7]
[364989126,1749384662953,-237.179429,0.0002369,7]
[364989127,1749384662964,-151.0,0.0002369,7]
[364989128,1749384662974,-2000.0,0.00023698,7]
[364989129,1749384662983,-2000.0,0.00023698,7]
[364989130,1749384662993,-1000.0,0.00023698,7]
[364989131,1749384663003,-952.4104622,0.00023699,2]
[364989132,1749384663012,-364.8515477,0.00023699,2]
[364989133,1749384663022,-364.8515477,0.00023699,2]
[364989134,1749384663031,-364.8515477,0.00023699,2]
[364989135,1749384663041,-364.8515477,0.00023699,2]
[364989136,1749384663051,-364.8515477,0.00023699,2]
[364989137,1749384663061,-176.7524085,0.00023699,2]
[364989138,1749384663073,-364.1722852,0.00023699,2]
[364989139,1749384663083,-176.7524085,0.00023699,2]
[364989140,1749384663093,-176.7524085,0.00023699,2]
[364989141,1749384663103,-176.7524085,0.00023699,2]
[364989142,1749384663114,-176.7524085,0.00023699,2]